[Event "Titled Tuesday Blitz March 21 Late 2023"]
[White "Toktomushev, Teimur"]
[Black "Manukyan, Sargis V."]
[WhiteFideId "14176726"]
[BlackFideId "13303465"]
[WhiteElo "2116"]
[BlackElo "2236"]
[Result "0-1"]
[Round "04"]
[TimeControl "180+2"]
[Date "2023.03.21"]
[WhiteClock "0:00:02"]
[BlackClock "0:01:21"]

1. d4 {[%clk 0:02:59]}  e6 {[%clk 0:03:00]} 2. c4 {[%clk 0:02:59]}  c5 {[%clk 0:03:01]} 3. d5 {[%clk 0:02:59]}  exd5 {[%clk 0:03:02]} 4. cxd5 {[%clk 0:03:00]}  a6 {[%clk 0:03:03]} 5. e4 {[%clk 0:02:47]}  d6 {[%clk 0:03:01]} 6. a4 {[%clk 0:02:40]}  Ne7 {[%clk 0:03:00]} 7. Nc3 {[%clk 0:02:37]}  Ng6 {[%clk 0:03:00]} 8. Be2 {[%clk 0:02:12]}  Be7 {[%clk 0:03:00]} 9. Nf3 {[%clk 0:02:12]}  Bg4 {[%clk 0:02:59]} 10. Nd2 {[%clk 0:02:09]}  Bxe2 {[%clk 0:02:59]} 11. Qxe2 {[%clk 0:02:10]}  Nd7 {[%clk 0:02:59]} 12. O-O {[%clk 0:02:08]}  O-O {[%clk 0:02:59]} 13. Nc4 {[%clk 0:01:57]}  Nde5 {[%clk 0:02:57]} 14. Na3 {[%clk 0:01:54]}  Bf6 {[%clk 0:02:51]} 15. f4 {[%clk 0:01:48]}  Nd7 {[%clk 0:02:51]} 16. Nc4 {[%clk 0:01:49]}  Bd4+ {[%clk 0:02:43]} 17. Be3 {[%clk 0:01:06]}  Nf6 {[%clk 0:02:34]} 18. Rad1 {[%clk 0:00:59]}  Bxe3+ {[%clk 0:02:30]} 19. Qxe3 {[%clk 0:01:00]}  Re8 {[%clk 0:02:31]} 20. Qf3 {[%clk 0:00:35]}  Rb8 {[%clk 0:02:20]} 21. a5 {[%clk 0:00:33]}  Qc7 {[%clk 0:02:19]} 22. Rfe1 {[%clk 0:00:18]}  Nd7 {[%clk 0:02:19]} 23. g3 {[%clk 0:00:14]}  b5 {[%clk 0:02:17]} 24. axb6 {[%clk 0:00:14]}  Nxb6 {[%clk 0:02:17]} 25. Ne3 {[%clk 0:00:08]}  Nd7 {[%clk 0:02:07]} 26. Rd2 {[%clk 0:00:08]}  Rb4 {[%clk 0:02:06]} 27. h4 {[%clk 0:00:09]}  h6 {[%clk 0:02:05]} 28. h5 {[%clk 0:00:09]}  Ne7 {[%clk 0:02:02]} 29. Kg2 {[%clk 0:00:08]}  Qb7 {[%clk 0:01:59]} 30. Ree2 {[%clk 0:00:08]}  Nf6 {[%clk 0:01:59]} 31. g4 {[%clk 0:00:05]}  Nh7 {[%clk 0:01:53]} 32. Qg3 {[%clk 0:00:04]}  f6 {[%clk 0:01:37]} 33. Nf5 {[%clk 0:00:03]}  Nxf5 {[%clk 0:01:36]} 34. gxf5 {[%clk 0:00:03]}  Qf7 {[%clk 0:01:34]} 35. Qg6 {[%clk 0:00:02]}  Nf8 {[%clk 0:01:35]} 36. Qxf7+ {[%clk 0:00:02]}  Kxf7 {[%clk 0:01:36]} 37. Kf3 {[%clk 0:00:03]}  Reb8 {[%clk 0:01:32]} 38. Rc2 {[%clk 0:00:02]}  Nd7 {[%clk 0:01:32]} 39. Nd1 {[%clk 0:00:02]}  a5 {[%clk 0:01:26]} 40. Nf2 {[%clk 0:00:02]}  Rb3+ {[%clk 0:01:25]} 41. Kg2 {[%clk 0:00:02]}  a4 {[%clk 0:01:25]} 42. Ng4 {[%clk 0:00:02]}  Re8 {[%clk 0:01:21]} 0-1


[Site "https://www.chess.com"]

[Event "Titled Tuesday Blitz March 21 Late 2023"]
[White "drdaro"]
[Black "Reprintsev, Alexander"]
[BlackFideId "14100541"]
[WhiteElo "2381"]
[BlackElo "2229"]
[Result "1-0"]
[Round "04"]
[TimeControl "180+2"]
[Date "2023.03.21"]
[WhiteClock "0:01:25"]
[BlackClock "0:01:49"]

1. d4 {[%clk 0:03:00]}  d5 {[%clk 0:02:52]} 2. g3 {[%clk 0:02:58]}  Nf6 {[%clk 0:02:48]} 3. Bg2 {[%clk 0:02:58]}  e6 {[%clk 0:02:48]} 4. c4 {[%clk 0:02:59]}  dxc4 {[%clk 0:02:47]} 5. Qc2 {[%clk 0:02:58]}  Nc6 {[%clk 0:02:40]} 6. Bxc6+ {[%clk 0:02:53]}  bxc6 {[%clk 0:02:39]} 7. Qxc4 {[%clk 0:02:54]}  Qd5 {[%clk 0:02:39]} 8. Qxd5 {[%clk 0:02:54]}  cxd5 {[%clk 0:02:39]} 9. Bf4 {[%clk 0:02:53]}  c5 {[%clk 0:02:38]} 10. dxc5 {[%clk 0:02:52]}  Bxc5 {[%clk 0:02:38]} 11. Nc3 {[%clk 0:02:53]}  O-O {[%clk 0:02:38]} 12. Nf3 {[%clk 0:02:54]}  Ba6 {[%clk 0:02:37]} 13. O-O {[%clk 0:02:53]}  Ne4 {[%clk 0:02:37]} 14. Rfc1 {[%clk 0:02:36]}  Rfc8 {[%clk 0:02:36]} 15. e3 {[%clk 0:02:32]}  Nxc3 {[%clk 0:02:23]} 16. Rxc3 {[%clk 0:02:33]}  Bb4 {[%clk 0:02:18]} 17. Rcc1 {[%clk 0:02:28]}  f6 {[%clk 0:02:17]} 18. Bc7 {[%clk 0:02:22]}  e5 {[%clk 0:02:14]} 19. a3 {[%clk 0:02:22]}  Be7 {[%clk 0:02:13]} 20. b4 {[%clk 0:02:19]}  Kf7 {[%clk 0:02:09]} 21. Rab1 {[%clk 0:02:18]}  Bb5 {[%clk 0:02:09]} 22. Ra1 {[%clk 0:02:12]}  Ba4 {[%clk 0:02:09]} 23. Nd2 {[%clk 0:02:10]}  Ke6 {[%clk 0:02:09]} 24. Kf1 {[%clk 0:02:09]}  Bd6 {[%clk 0:02:08]} 25. Bxd6 {[%clk 0:02:08]}  Kxd6 {[%clk 0:02:09]} 26. Ke2 {[%clk 0:02:06]}  Bb5+ {[%clk 0:02:09]} 27. Kd1 {[%clk 0:02:07]}  g5 {[%clk 0:02:06]} 28. Ke1 {[%clk 0:02:04]}  g4 {[%clk 0:02:05]} 29. Nb3 {[%clk 0:02:04]}  Rc4 {[%clk 0:01:59]} 30. Nc5 {[%clk 0:01:57]}  Rg8 {[%clk 0:01:57]} 31. a4 {[%clk 0:01:53]}  Bc6 {[%clk 0:01:56]} 32. Rxc4 {[%clk 0:01:53]}  dxc4 {[%clk 0:01:57]} 33. Rd1+ {[%clk 0:01:53]}  Ke7 {[%clk 0:01:52]} 34. b5 {[%clk 0:01:52]}  Bf3 {[%clk 0:01:52]} 35. Rd7+ {[%clk 0:01:48]}  Kf8 {[%clk 0:01:51]} 36. Rxa7 {[%clk 0:01:40]}  Rg5 {[%clk 0:01:51]} 37. Ne6+ {[%clk 0:01:27]}  Ke8 {[%clk 0:01:49]} 38. Nxg5 {[%clk 0:01:26]}  fxg5 {[%clk 0:01:49]} 39. Kd2 {[%clk 0:01:25]} 1-0


[Site "https://www.chess.com"]

[Event "Titled Tuesday Blitz March 21 Late 2023"]
[White "Wizard_of_Odds"]
[Black "Vovk, Orest"]
[BlackFideId "14113490"]
[WhiteElo "2355"]
[BlackElo "2215"]
[Result "0-1"]
[Round "04"]
[TimeControl "180+2"]
[Date "2023.03.21"]
[WhiteClock "0:00:04"]
[BlackClock "0:00:39"]

1. d4 {[%clk 0:02:59]}  h6 {[%clk 0:02:53]} 2. e4 {[%clk 0:02:58]}  g5 {[%clk 0:02:53]} 3. h4 {[%clk 0:02:57]}  g4 {[%clk 0:02:52]} 4. Qxg4 {[%clk 0:02:55]}  d5 {[%clk 0:02:51]} 5. Qe2 {[%clk 0:02:49]}  dxe4 {[%clk 0:02:51]} 6. Qxe4 {[%clk 0:02:37]}  Nf6 {[%clk 0:02:49]} 7. Qd3 {[%clk 0:02:35]}  Nc6 {[%clk 0:02:48]} 8. Nf3 {[%clk 0:02:35]}  Bg4 {[%clk 0:02:48]} 9. c3 {[%clk 0:02:33]}  Qd5 {[%clk 0:02:47]} 10. Be2 {[%clk 0:02:30]}  O-O-O {[%clk 0:02:46]} 11. Na3 {[%clk 0:02:06]}  e5 {[%clk 0:02:41]} 12. dxe5 {[%clk 0:01:53]}  Bxa3 {[%clk 0:02:20]} 13. bxa3 {[%clk 0:01:36]}  Qxd3 {[%clk 0:02:17]} 14. Bxd3 {[%clk 0:01:36]}  Rxd3 {[%clk 0:02:14]} 15. exf6 {[%clk 0:01:35]}  Bxf3 {[%clk 0:02:12]} 16. gxf3 {[%clk 0:01:35]}  Rxc3 {[%clk 0:02:11]} 17. Be3 {[%clk 0:01:27]}  Rxa3 {[%clk 0:02:06]} 18. Rg1 {[%clk 0:01:26]}  Ne5 {[%clk 0:02:03]} 19. Ke2 {[%clk 0:01:24]}  Re8 {[%clk 0:01:56]} 20. Rg7 {[%clk 0:01:10]}  Nc4 {[%clk 0:01:40]} 21. Rxf7 {[%clk 0:01:02]}  Nxe3 {[%clk 0:01:40]} 22. fxe3 {[%clk 0:01:02]}  Rexe3+ {[%clk 0:01:39]} 23. Kd2 {[%clk 0:01:00]}  Rxf3 {[%clk 0:01:39]} 24. Ke2 {[%clk 0:00:52]}  Rae3+ {[%clk 0:01:35]} 25. Kd2 {[%clk 0:00:52]}  Re6 {[%clk 0:01:33]} 26. Rg1 {[%clk 0:00:47]}  b6 {[%clk 0:01:24]} 27. Rgg7 {[%clk 0:00:42]}  Rc6 {[%clk 0:01:16]} 28. Rf8+ {[%clk 0:00:40]}  Kb7 {[%clk 0:01:16]} 29. f7 {[%clk 0:00:39]}  Rcf6 {[%clk 0:01:16]} 30. h5 {[%clk 0:00:23]}  a5 {[%clk 0:00:58]} 31. a4 {[%clk 0:00:22]}  R3f4 {[%clk 0:00:57]} 32. Ke3 {[%clk 0:00:16]}  Rxa4 {[%clk 0:00:56]} 33. Rg6 {[%clk 0:00:16]}  Raf4 {[%clk 0:00:52]} 34. Rxf6 {[%clk 0:00:11]}  Rxf6 {[%clk 0:00:51]} 35. Ke4 {[%clk 0:00:12]}  a4 {[%clk 0:00:51]} 36. Ke5 {[%clk 0:00:12]}  Rf1 {[%clk 0:00:50]} 37. Ke6 {[%clk 0:00:11]}  a3 {[%clk 0:00:51]} 38. Rg8 {[%clk 0:00:05]}  a2 {[%clk 0:00:50]} 39. f8=Q {[%clk 0:00:04]}  Rxf8 {[%clk 0:00:49]} 40. Rxf8 {[%clk 0:00:05]}  a1=Q {[%clk 0:00:48]} 41. Rf5 {[%clk 0:00:05]}  Qg7 {[%clk 0:00:44]} 42. Rf7 {[%clk 0:00:04]}  Qg4+ {[%clk 0:00:42]} 43. Rf5 {[%clk 0:00:04]}  b5 {[%clk 0:00:41]} 44. Kf6 {[%clk 0:00:04]}  Qxf5+ {[%clk 0:00:39]} 45. Kxf5 {[%clk 0:00:04]}  b4 {[%clk 0:00:40]} 46. Ke4 {[%clk 0:00:04]}  c5 {[%clk 0:00:39]} 47. Kd5 {[%clk 0:00:04]}  b3 {[%clk 0:00:39]} 48. Kxc5 {[%clk 0:00:04]}  b2 {[%clk 0:00:39]} 0-1


[Site "https://www.chess.com"]

[Event "Titled Tuesday Blitz March 21 Late 2023"]
[White "Mayaud, Raphael"]
[Black "Omelja, Artem"]
[WhiteFideId "627151"]
[BlackFideId "14119846"]
[WhiteElo "2191"]
[BlackElo "2404"]
[Result "0-1"]
[Round "04"]
[TimeControl "180+2"]
[Date "2023.03.21"]
[WhiteClock "0:00:03"]
[BlackClock "0:00:10"]

1. d4 {[%clk 0:03:00]}  Nf6 {[%clk 0:02:59]} 2. Bg5 {[%clk 0:03:00]}  Ne4 {[%clk 0:02:58]} 3. Bf4 {[%clk 0:03:00]}  d5 {[%clk 0:02:58]} 4. e3 {[%clk 0:03:00]}  Nd7 {[%clk 0:02:56]} 5. Bd3 {[%clk 0:02:54]}  Ndf6 {[%clk 0:02:56]} 6. Nf3 {[%clk 0:02:53]}  h6 {[%clk 0:02:54]} 7. h3 {[%clk 0:02:53]}  b6 {[%clk 0:02:49]} 8. O-O {[%clk 0:02:50]}  Bb7 {[%clk 0:02:49]} 9. c4 {[%clk 0:02:48]}  e6 {[%clk 0:02:50]} 10. Nc3 {[%clk 0:02:48]}  Be7 {[%clk 0:02:49]} 11. Rc1 {[%clk 0:02:47]}  O-O {[%clk 0:02:49]} 12. cxd5 {[%clk 0:02:40]}  exd5 {[%clk 0:02:49]} 13. Bxc7 {[%clk 0:02:06]}  Qxc7 {[%clk 0:02:23]} 14. Nxe4 {[%clk 0:02:04]}  Qd8 {[%clk 0:02:19]} 15. Nxf6+ {[%clk 0:02:01]}  Bxf6 {[%clk 0:02:20]} 16. Qa4 {[%clk 0:01:39]}  Qd6 {[%clk 0:02:19]} 17. Rc2 {[%clk 0:01:32]}  Rfc8 {[%clk 0:01:58]} 18. Rfc1 {[%clk 0:01:32]}  Rxc2 {[%clk 0:01:57]} 19. Rxc2 {[%clk 0:01:32]}  a6 {[%clk 0:01:49]} 20. a3 {[%clk 0:01:15]}  b5 {[%clk 0:01:34]} 21. Qb3 {[%clk 0:01:15]}  Be7 {[%clk 0:01:33]} 22. Ne5 {[%clk 0:01:11]}  f6 {[%clk 0:01:22]} 23. Ng6 {[%clk 0:01:08]}  Bd8 {[%clk 0:01:22]} 24. Nf4 {[%clk 0:01:07]}  Bb6 {[%clk 0:01:10]} 25. Rc1 {[%clk 0:01:06]}  Bxd4 {[%clk 0:01:07]} 26. Bb1 {[%clk 0:00:38]}  Be5 {[%clk 0:01:02]} 27. Qd3 {[%clk 0:00:38]}  Bxf4 {[%clk 0:00:19]} 28. Qh7+ {[%clk 0:00:37]}  Kf8 {[%clk 0:00:17]} 29. exf4 {[%clk 0:00:26]}  d4 {[%clk 0:00:17]} 30. Bg6 {[%clk 0:00:16]}  Bd5 {[%clk 0:00:14]} 31. Qh8+ {[%clk 0:00:08]}  Bg8 {[%clk 0:00:14]} 32. Bh7 {[%clk 0:00:09]}  Kf7 {[%clk 0:00:15]} 33. Bxg8+ {[%clk 0:00:06]}  Rxg8 {[%clk 0:00:16]} 34. Qh7 {[%clk 0:00:07]}  Qxf4 {[%clk 0:00:15]} 35. Re1 {[%clk 0:00:06]}  Qd6 {[%clk 0:00:15]} 36. Qe4 {[%clk 0:00:05]}  Rd8 {[%clk 0:00:15]} 37. Qh7 {[%clk 0:00:03]}  Qd7 {[%clk 0:00:12]} 38. Qe4 {[%clk 0:00:03]}  Re8 {[%clk 0:00:12]} 39. Qb1 {[%clk 0:00:02]}  Rxe1+ {[%clk 0:00:12]} 40. Qxe1 {[%clk 0:00:03]}  d3 {[%clk 0:00:13]} 41. Qd2 {[%clk 0:00:03]}  Qd5 {[%clk 0:00:12]} 42. g3 {[%clk 0:00:04]}  Qc4 {[%clk 0:00:11]} 43. Kh2 {[%clk 0:00:04]}  Qc2 {[%clk 0:00:10]} 44. Qe3 {[%clk 0:00:04]}  d2 {[%clk 0:00:10]} 45. Qa7+ {[%clk 0:00:04]}  Kg6 {[%clk 0:00:10]} 46. h4 {[%clk 0:00:02]}  d1=Q {[%clk 0:00:10]} 47. h5+ {[%clk 0:00:03]}  Kh7 {[%clk 0:00:10]} 0-1


[Site "https://www.chess.com"]

[Event "Titled Tuesday Blitz March 21 Late 2023"]
[White "Janaszak, Dawid"]
[Black "Bhavikatti, Neil"]
[WhiteFideId "1119206"]
[BlackFideId "30935024"]
[WhiteElo "2220"]
[BlackElo "2354"]
[Result "1-0"]
[Round "04"]
[TimeControl "180+2"]
[Date "2023.03.21"]
[WhiteClock "0:01:46"]
[BlackClock "0:01:44"]

1. e4 {[%clk 0:03:00]}  e5 {[%clk 0:03:00]} 2. Nf3 {[%clk 0:03:00]}  Nc6 {[%clk 0:03:01]} 3. d4 {[%clk 0:03:00]}  exd4 {[%clk 0:03:00]} 4. Nxd4 {[%clk 0:03:01]}  Nf6 {[%clk 0:03:00]} 5. Nxc6 {[%clk 0:03:00]}  bxc6 {[%clk 0:03:01]} 6. e5 {[%clk 0:03:01]}  Qe7 {[%clk 0:03:01]} 7. Qe2 {[%clk 0:03:00]}  Nd5 {[%clk 0:03:02]} 8. h4 {[%clk 0:03:00]}  d6 {[%clk 0:03:01]} 9. c4 {[%clk 0:02:54]}  Ba6 {[%clk 0:02:43]} 10. Bg5 {[%clk 0:02:53]}  Qe6 {[%clk 0:02:42]} 11. cxd5 {[%clk 0:02:52]}  Bxe2 {[%clk 0:02:41]} 12. dxe6 {[%clk 0:02:52]}  Bxf1 {[%clk 0:02:42]} 13. exf7+ {[%clk 0:02:50]}  Kxf7 {[%clk 0:02:43]} 14. Kxf1 {[%clk 0:02:48]}  dxe5 {[%clk 0:02:44]} 15. Nc3 {[%clk 0:02:48]}  h6 {[%clk 0:02:42]} 16. Be3 {[%clk 0:02:48]}  Rb8 {[%clk 0:02:39]} 17. b3 {[%clk 0:02:48]}  c5 {[%clk 0:02:31]} 18. Rc1 {[%clk 0:02:47]}  c4 {[%clk 0:02:29]} 19. bxc4 {[%clk 0:02:46]}  Ba3 {[%clk 0:02:26]} 20. Rc2 {[%clk 0:02:39]}  Rhd8 {[%clk 0:02:23]} 21. Ke2 {[%clk 0:02:39]}  a6 {[%clk 0:02:16]} 22. Rd1 {[%clk 0:02:35]}  c6 {[%clk 0:02:10]} 23. Rcd2 {[%clk 0:02:34]}  Rxd2+ {[%clk 0:02:08]} 24. Rxd2 {[%clk 0:02:35]}  Ke7 {[%clk 0:02:06]} 25. Ne4 {[%clk 0:02:29]}  Bb4 {[%clk 0:02:02]} 26. Bc5+ {[%clk 0:02:29]}  Bxc5 {[%clk 0:01:59]} 27. Nxc5 {[%clk 0:02:30]}  Rb4 {[%clk 0:01:57]} 28. Rd7+ {[%clk 0:02:26]}  Kf6 {[%clk 0:01:55]} 29. Kd3 {[%clk 0:02:11]}  Rb2 {[%clk 0:01:55]} 30. a4 {[%clk 0:02:08]}  a5 {[%clk 0:01:47]} 31. Rd6+ {[%clk 0:02:07]}  Kf5 {[%clk 0:01:47]} 32. Ke3 {[%clk 0:01:57]}  Rc2 {[%clk 0:01:45]} 33. f3 {[%clk 0:01:47]}  Rxc4 {[%clk 0:01:44]} 34. g4+ {[%clk 0:01:46]} 1-0


[Site "https://www.chess.com"]

[Event "Titled Tuesday Blitz March 21 Late 2023"]
[White "Molenda, Marcin"]
[Black "Abduzhaparov"]
[WhiteFideId "1173065"]
[WhiteElo "2286"]
[BlackElo "2345"]
[Result "0-1"]
[Round "04"]
[TimeControl "180+2"]
[Date "2023.03.21"]
[WhiteClock "0:00:01"]
[BlackClock "0:00:15"]

1. e4 {[%clk 0:02:55]}  d6 {[%clk 0:03:00]} 2. d4 {[%clk 0:02:54]}  Nf6 {[%clk 0:03:01]} 3. Nc3 {[%clk 0:02:55]}  e5 {[%clk 0:03:02]} 4. Nf3 {[%clk 0:02:54]}  Nbd7 {[%clk 0:03:02]} 5. Bc4 {[%clk 0:02:54]}  Be7 {[%clk 0:03:02]} 6. O-O {[%clk 0:02:51]}  O-O {[%clk 0:03:03]} 7. a4 {[%clk 0:02:51]}  c6 {[%clk 0:03:03]} 8. a5 {[%clk 0:02:51]}  Qc7 {[%clk 0:03:02]} 9. h3 {[%clk 0:02:49]}  Rb8 {[%clk 0:03:02]} 10. Re1 {[%clk 0:02:46]}  b5 {[%clk 0:03:02]} 11. axb6 {[%clk 0:02:46]}  axb6 {[%clk 0:03:02]} 12. d5 {[%clk 0:02:44]}  b5 {[%clk 0:02:55]} 13. Bf1 {[%clk 0:02:38]}  b4 {[%clk 0:02:55]} 14. dxc6 {[%clk 0:02:37]}  bxc3 {[%clk 0:02:54]} 15. cxd7 {[%clk 0:02:35]}  Bxd7 {[%clk 0:02:55]} 16. bxc3 {[%clk 0:02:35]}  Qxc3 {[%clk 0:02:41]} 17. Ra7 {[%clk 0:02:32]}  Qc5 {[%clk 0:02:38]} 18. Be3 {[%clk 0:02:31]}  Qc6 {[%clk 0:02:38]} 19. Bg5 {[%clk 0:02:22]}  Bd8 {[%clk 0:02:29]} 20. Bxf6 {[%clk 0:02:11]}  Bxf6 {[%clk 0:02:30]} 21. Bc4 {[%clk 0:02:11]}  Bxh3 {[%clk 0:01:55]} 22. Bxf7+ {[%clk 0:01:41]}  Rxf7 {[%clk 0:01:54]} 23. Rxf7 {[%clk 0:01:41]}  Kxf7 {[%clk 0:01:44]} 24. gxh3 {[%clk 0:01:42]}  Rb2 {[%clk 0:01:36]} 25. Re2 {[%clk 0:01:39]}  Qb6 {[%clk 0:01:25]} 26. Kg2 {[%clk 0:01:38]}  Ke7 {[%clk 0:01:10]} 27. Nd2 {[%clk 0:01:22]}  Qb5 {[%clk 0:01:02]} 28. Nb3 {[%clk 0:01:20]}  Rb1 {[%clk 0:00:54]} 29. Qd2 {[%clk 0:01:13]}  h6 {[%clk 0:00:54]} 30. Kf3 {[%clk 0:01:00]}  Bg5 {[%clk 0:00:48]} 31. Qc3 {[%clk 0:00:59]}  Rh1 {[%clk 0:00:43]} 32. Qc7+ {[%clk 0:00:55]}  Qd7 {[%clk 0:00:43]} 33. Qxd7+ {[%clk 0:00:52]}  Kxd7 {[%clk 0:00:43]} 34. Kg2 {[%clk 0:00:48]}  Rb1 {[%clk 0:00:41]} 35. Na5 {[%clk 0:00:39]}  Bf4 {[%clk 0:00:37]} 36. Nc4 {[%clk 0:00:37]}  Kc6 {[%clk 0:00:36]} 37. Na5+ {[%clk 0:00:31]}  Kb6 {[%clk 0:00:32]} 38. Nb3 {[%clk 0:00:25]}  Kb5 {[%clk 0:00:28]} 39. Kf3 {[%clk 0:00:25]}  Kb4 {[%clk 0:00:25]} 40. Kg4 {[%clk 0:00:26]}  g6 {[%clk 0:00:23]} 41. Nd2 {[%clk 0:00:17]}  Rh1 {[%clk 0:00:21]} 42. Nf3 {[%clk 0:00:09]}  h5+ {[%clk 0:00:21]} 43. Kh4 {[%clk 0:00:10]}  g5+ {[%clk 0:00:19]} 44. Nxg5 {[%clk 0:00:10]}  Bxg5+ {[%clk 0:00:18]} 45. Kxg5 {[%clk 0:00:10]}  Rxh3 {[%clk 0:00:19]} 46. Rd2 {[%clk 0:00:08]}  Kc5 {[%clk 0:00:19]} 47. Kf5 {[%clk 0:00:01]}  Rf3+ {[%clk 0:00:15]} 48. Kg5 {[%clk 0:00:02]}  Rf4 {[%clk 0:00:15]} 49. Kxh5 {[%clk 0:00:01]}  Rxe4 {[%clk 0:00:16]} 50. Kg5 {[%clk 0:00:01]}  Rf4 {[%clk 0:00:15]} 0-1


[Site "https://www.chess.com"]

[Event "Titled Tuesday Blitz March 21 Late 2023"]
[White "Korkmaz, Necmettin"]
[Black "Fernandez Siles, Luis"]
[WhiteFideId "6303285"]
[BlackFideId "2209420"]
[WhiteElo "2097"]
[BlackElo "2186"]
[Result "0-1"]
[Round "04"]
[TimeControl "180+2"]
[Date "2023.03.21"]
[WhiteClock "0:01:42"]
[BlackClock "0:00:35"]

1. e4 {[%clk 0:03:00]}  c5 {[%clk 0:02:59]} 2. Nc3 {[%clk 0:02:59]}  Nc6 {[%clk 0:02:57]} 3. f4 {[%clk 0:02:51]}  g6 {[%clk 0:02:56]} 4. Nf3 {[%clk 0:02:51]}  Bg7 {[%clk 0:02:56]} 5. Bb5 {[%clk 0:02:49]}  Nd4 {[%clk 0:02:55]} 6. O-O {[%clk 0:02:48]}  Nxb5 {[%clk 0:02:54]} 7. Nxb5 {[%clk 0:02:48]}  d5 {[%clk 0:02:51]} 8. exd5 {[%clk 0:02:47]}  a6 {[%clk 0:02:50]} 9. Nc3 {[%clk 0:02:46]}  Nf6 {[%clk 0:02:51]} 10. d4 {[%clk 0:02:43]}  Nxd5 {[%clk 0:02:39]} 11. dxc5 {[%clk 0:02:43]}  Nxc3 {[%clk 0:02:37]} 12. Qxd8+ {[%clk 0:02:42]}  Kxd8 {[%clk 0:02:37]} 13. bxc3 {[%clk 0:02:42]}  Bxc3 {[%clk 0:02:34]} 14. Rd1+ {[%clk 0:02:38]}  Kc7 {[%clk 0:02:29]} 15. Rb1 {[%clk 0:02:39]}  Bf5 {[%clk 0:02:16]} 16. Bd2 {[%clk 0:02:34]}  Bxd2 {[%clk 0:01:59]} 17. Rxd2 {[%clk 0:02:34]}  Rhd8 {[%clk 0:01:53]} 18. Re2 {[%clk 0:02:29]}  Rd7 {[%clk 0:01:48]} 19. Ne5 {[%clk 0:02:24]}  Rd5 {[%clk 0:01:43]} 20. Nxf7 {[%clk 0:02:20]}  e6 {[%clk 0:01:34]} 21. Nd6 {[%clk 0:02:15]}  Rxc5 {[%clk 0:01:34]} 22. Nxf5 {[%clk 0:02:13]}  exf5 {[%clk 0:01:30]} 23. Re7+ {[%clk 0:02:12]}  Kd6 {[%clk 0:01:19]} 24. Rbxb7 {[%clk 0:02:08]}  Rxc2 {[%clk 0:01:07]} 25. Rbd7+ {[%clk 0:02:04]}  Kc6 {[%clk 0:01:07]} 26. Rc7+ {[%clk 0:02:05]}  Kd6 {[%clk 0:01:07]} 27. Red7+ {[%clk 0:02:02]}  Ke6 {[%clk 0:01:07]} 28. Rxh7 {[%clk 0:02:02]}  Rxa2 {[%clk 0:00:49]} 29. Rc6+ {[%clk 0:02:01]}  Kd5 {[%clk 0:00:49]} 30. Rxg6 {[%clk 0:02:01]}  Ke4 {[%clk 0:00:48]} 31. h4 {[%clk 0:01:56]}  Kxf4 {[%clk 0:00:46]} 32. h5 {[%clk 0:01:57]}  Rc8 {[%clk 0:00:42]} 33. h6 {[%clk 0:01:57]}  Rc1+ {[%clk 0:00:42]} 34. Kh2 {[%clk 0:01:57]}  Raa1 {[%clk 0:00:42]} 35. g4 {[%clk 0:01:42]}  Ra2+ {[%clk 0:00:35]} 36. Kh3 {[%clk 0:01:42]}  Rc3+ {[%clk 0:00:35]} 37. Kh4 {[%clk 0:01:42]}  Rh2# {[%clk 0:00:35]} 0-1


[Site "https://www.chess.com"]

[Event "Titled Tuesday Blitz March 21 Late 2023"]
[White "Castella Garcia, Fausto"]
[Black "Carbone, Diego"]
[WhiteFideId "3501922"]
[BlackFideId "3002179"]
[WhiteElo "2245"]
[BlackElo "2266"]
[Result "1/2-1/2"]
[Round "04"]
[TimeControl "180+2"]
[Date "2023.03.21"]
[WhiteClock "0:00:03"]
[BlackClock "0:00:05"]

1. e4 {[%clk 0:03:00]}  e5 {[%clk 0:02:58]} 2. Nf3 {[%clk 0:03:00]}  Nc6 {[%clk 0:02:59]} 3. Bb5 {[%clk 0:03:00]}  a6 {[%clk 0:02:59]} 4. Ba4 {[%clk 0:03:00]}  Nf6 {[%clk 0:03:00]} 5. d4 {[%clk 0:03:00]}  exd4 {[%clk 0:02:37]} 6. O-O {[%clk 0:02:58]}  b5 {[%clk 0:02:32]} 7. Bb3 {[%clk 0:02:56]}  d6 {[%clk 0:02:32]} 8. Ng5 {[%clk 0:02:55]}  Ne5 {[%clk 0:01:47]} 9. f4 {[%clk 0:02:53]}  Nc4 {[%clk 0:01:47]} 10. e5 {[%clk 0:02:53]}  Nd5 {[%clk 0:01:41]} 11. Qxd4 {[%clk 0:02:36]}  c6 {[%clk 0:01:41]} 12. Bxc4 {[%clk 0:02:26]}  bxc4 {[%clk 0:01:42]} 13. Qxc4 {[%clk 0:02:23]}  Qb6+ {[%clk 0:01:39]} 14. Kh1 {[%clk 0:02:18]}  Qb5 {[%clk 0:01:33]} 15. Na3 {[%clk 0:02:08]}  Qxc4 {[%clk 0:01:33]} 16. Nxc4 {[%clk 0:02:09]}  dxe5 {[%clk 0:01:21]} 17. fxe5 {[%clk 0:01:59]}  Be6 {[%clk 0:01:20]} 18. Nxe6 {[%clk 0:01:54]}  fxe6 {[%clk 0:01:21]} 19. a3 {[%clk 0:01:36]}  Bc5 {[%clk 0:01:19]} 20. b4 {[%clk 0:01:26]}  Rf8 {[%clk 0:01:13]} 21. Bg5 {[%clk 0:01:17]}  Bd4 {[%clk 0:01:07]} 22. Rxf8+ {[%clk 0:01:08]}  Kxf8 {[%clk 0:01:08]} 23. Rf1+ {[%clk 0:01:05]}  Kg8 {[%clk 0:01:08]} 24. h4 {[%clk 0:00:54]}  h6 {[%clk 0:01:03]} 25. Bd2 {[%clk 0:00:52]}  c5 {[%clk 0:01:04]} 26. g4 {[%clk 0:00:40]}  cxb4 {[%clk 0:01:00]} 27. axb4 {[%clk 0:00:40]}  Rc8 {[%clk 0:01:01]} 28. Nd6 {[%clk 0:00:30]}  Rxc2 {[%clk 0:00:56]} 29. Be1 {[%clk 0:00:23]}  Bxe5 {[%clk 0:00:55]} 30. Nf7 {[%clk 0:00:20]}  Ne3 {[%clk 0:00:39]} 31. Rf3 {[%clk 0:00:14]}  Nxg4 {[%clk 0:00:39]} 32. Nxe5 {[%clk 0:00:10]}  Nxe5 {[%clk 0:00:40]} 33. Re3 {[%clk 0:00:10]}  Nf7 {[%clk 0:00:19]} 34. Rxe6 {[%clk 0:00:11]}  Rc1 {[%clk 0:00:19]} 35. Kg2 {[%clk 0:00:11]}  Kh7 {[%clk 0:00:19]} 36. Kf3 {[%clk 0:00:11]}  g5 {[%clk 0:00:17]} 37. h5 {[%clk 0:00:10]}  Kg7 {[%clk 0:00:16]} 38. Bd2 {[%clk 0:00:10]}  Rf1+ {[%clk 0:00:13]} 39. Ke2 {[%clk 0:00:09]}  Rh1 {[%clk 0:00:11]} 40. Bc3+ {[%clk 0:00:10]}  Kf8 {[%clk 0:00:11]} 41. Rxa6 {[%clk 0:00:09]}  Rxh5 {[%clk 0:00:11]} 42. b5 {[%clk 0:00:10]}  Rh2+ {[%clk 0:00:10]} 43. Kd3 {[%clk 0:00:08]}  Ke7 {[%clk 0:00:10]} 44. Ra7+ {[%clk 0:00:07]}  Ke6 {[%clk 0:00:10]} 45. b6 {[%clk 0:00:08]}  Ne5+ {[%clk 0:00:08]} 46. Ke4 {[%clk 0:00:06]}  Re2+ {[%clk 0:00:08]} 47. Kd4 {[%clk 0:00:06]}  Nc6+ {[%clk 0:00:07]} 48. Kd3 {[%clk 0:00:06]}  Nxa7 {[%clk 0:00:07]} 49. Kxe2 {[%clk 0:00:03]}  Nc6 {[%clk 0:00:06]} 50. b7 {[%clk 0:00:04]}  Kf5 {[%clk 0:00:06]} 51. Kf3 {[%clk 0:00:04]}  h5 {[%clk 0:00:05]} 52. Kg3 {[%clk 0:00:04]}  Ke6 {[%clk 0:00:03]} 53. Bd2 {[%clk 0:00:03]}  Kf5 {[%clk 0:00:03]} 54. Ba5 {[%clk 0:00:03]}  h4+ {[%clk 0:00:02]} 55. Kf3 {[%clk 0:00:03]}  g4+ {[%clk 0:00:02]} 56. Kg2 {[%clk 0:00:03]}  Kg5 {[%clk 0:00:02]} 57. Bc7 {[%clk 0:00:04]}  Kh5 {[%clk 0:00:02]} 58. b8=Q {[%clk 0:00:04]}  Nxb8 {[%clk 0:00:03]} 59. Bxb8 {[%clk 0:00:04]}  Kg5 {[%clk 0:00:04]} 60. Bd6 {[%clk 0:00:05]}  h3+ {[%clk 0:00:03]} 61. Kg3 {[%clk 0:00:04]}  Kf5 {[%clk 0:00:04]} 62. Bc5 {[%clk 0:00:04]}  h2 {[%clk 0:00:04]} 63. Kxh2 {[%clk 0:00:02]}  g3+ {[%clk 0:00:05]} 64. Kxg3 {[%clk 0:00:03]} 1/2-1/2


[Site "https://www.chess.com"]